[Event "*** Titled Tuesday Blitz"]
[Site "Chess.com"]
[Date "2021.04.27"]
[Round "7"]
[White "Taktikmonster"]
[Black "BigAl"]
[Result "0-1"]
[WhiteElo "2415"]
[BlackElo "2567"]
[TimeControl "180+1"]
[EndTime "11:16:56 PDT"]
[Termination "BigAl won by checkmate"]

1. e4 {[%clk 0:02:51.8]} 1... c6 {[%clk 0:02:59.7]} 2. d4 {[%clk 0:02:51.2]}
2... d5 {[%clk 0:02:59.4]} 3. e5 {[%clk 0:02:50.9]} 3... Bf5 {[%clk 0:02:59.6]}
4. Nd2 {[%clk 0:02:44.3]} 4... e6 {[%clk 0:02:59.2]} 5. Nb3 {[%clk 0:02:43]}
5... Nd7 {[%clk 0:02:44.3]} 6. Nf3 {[%clk 0:02:42.4]} 6... Ne7 {[%clk
0:02:40.5]} 7. Be2 {[%clk 0:02:36.7]} 7... Ng6 {[%clk 0:02:40.6]} 8. O-O {[%clk
0:02:35.3]} 8... f6 {[%clk 0:02:41.1]} 9. exf6 {[%clk 0:02:34.1]} 9... Qxf6
{[%clk 0:02:40.6]} 10. Bg5 {[%clk 0:02:33.3]} 10... Qf7 {[%clk 0:02:41]} 11. Bd3
{[%clk 0:02:27.9]} 11... Bd6 {[%clk 0:02:34.1]} 12. Bxf5 {[%clk 0:02:25.6]}
12... Qxf5 {[%clk 0:02:34.3]} 13. Re1 {[%clk 0:02:20.8]} 13... O-O {[%clk
0:02:34.8]} 14. Qd2 {[%clk 0:02:10.5]} 14... Bf4 {[%clk 0:02:14]} 15. Bxf4
{[%clk 0:02:07.4]} 15... Nxf4 {[%clk 0:02:14.3]} 16. Ne5 {[%clk 0:01:50.2]}
16... Qg5 {[%clk 0:01:52.3]} 17. f3 {[%clk 0:01:20.2]} 17... Nxe5 {[%clk
0:01:14]} 18. Rxe5 {[%clk 0:01:21.1]} 18... Qg6 {[%clk 0:01:14]} 19. Rae1 {[%clk
0:00:52.2]} 19... Rae8 {[%clk 0:01:12]} 20. Nc5 {[%clk 0:00:49.5]} 20... Rf5
{[%clk 0:00:47.1]} 21. Rxf5 {[%clk 0:00:43.7]} 21... Qxf5 {[%clk 0:00:45.4]} 22.
Nd7 {[%clk 0:00:38.9]} 22... b6 {[%clk 0:00:34.3]} 23. Ne5 {[%clk 0:00:37.5]}
23... c5 {[%clk 0:00:34.8]} 24. c3 {[%clk 0:00:38.1]} 24... cxd4 {[%clk
0:00:35]} 25. Qxd4 {[%clk 0:00:33.7]} 25... h6 {[%clk 0:00:33.7]} 26. Ng4 {[%clk
0:00:19]} 26... Rf8 {[%clk 0:00:28.7]} 27. Qe5 {[%clk 0:00:13.4]} 27... Qc2
{[%clk 0:00:28.5]} 28. Ne3 {[%clk 0:00:10.8]} 28... Qd2 {[%clk 0:00:28.1]} 29.
Rd1 {[%clk 0:00:07.3]} 29... Qe2 {[%clk 0:00:25.2]} 30. Rf1 {[%clk 0:00:01.1]}
30... Rf6 {[%clk 0:00:20.2]} 31. Rf2 {[%clk 0:00:01.2]} 31... Qe1+ {[%clk
0:00:18.3]} 32. Rf1 {[%clk 0:00:01.8]} 32... Qe2 {[%clk 0:00:14.4]} 33. Rf2
{[%clk 0:00:02.3]} 33... Nh3+ {[%clk 0:00:12.2]} 34. gxh3 {[%clk 0:00:02.1]}
34... Rg6+ {[%clk 0:00:12.7]} 35. Ng4 {[%clk 0:00:02.4]} 35... Qxe5 {[%clk
0:00:12.6]} 36. Kf1 {[%clk 0:00:02.3]} 36... Qf4 {[%clk 0:00:11.5]} 37. Re2
{[%clk 0:00:02.5]} 37... h5 {[%clk 0:00:10.3]} 38. Rxe6 {[%clk 0:00:01.8]} 38...
Rxe6 {[%clk 0:00:08.5]} 39. Kg1 {[%clk 0:00:02.3]} 39... Qxf3 {[%clk 0:00:08.6]}
40. Nf2 {[%clk 0:00:01.7]} 40... Re1# {[%clk 0:00:08.6]} 0-1

[Event "*** Titled Tuesday Blitz"]
[Site "Chess.com"]
[Date "2021.04.27"]
[Round "7"]
[White "Andrii_Prydun"]
[Black "elcandado"]
[Result "1/2-1/2"]
[WhiteElo "2343"]
[BlackElo "2619"]
[TimeControl "180+1"]
[EndTime "11:16:56 PDT"]
[Termination "Game drawn by repetition"]

1. d4 {[%clk 0:02:01.3]} 1... Nf6 {[%clk 0:02:57.9]} 2. Nc3 {[%clk 0:02:01.3]}
2... d5 {[%clk 0:02:56.9]} 3. Bf4 {[%clk 0:02:01.3]} 3... e6 {[%clk 0:02:49.6]}
4. Nb5 {[%clk 0:02:00.3]} 4... Bd6 {[%clk 0:02:37.6]} 5. Nxd6+ {[%clk
0:01:57.9]} 5... cxd6 {[%clk 0:02:37.2]} 6. e3 {[%clk 0:01:55.4]} 6... Nc6
{[%clk 0:02:36.2]} 7. Nf3 {[%clk 0:01:54.3]} 7... Qe7 {[%clk 0:02:35.5]} 8. Bg5
{[%clk 0:01:53.5]} 8... h6 {[%clk 0:02:35.1]} 9. Bxf6 {[%clk 0:01:52.9]} 9...
gxf6 {[%clk 0:02:31.1]} 10. c4 {[%clk 0:01:52.6]} 10... dxc4 {[%clk 0:02:29.1]}
11. Bxc4 {[%clk 0:01:53.1]} 11... d5 {[%clk 0:02:29.1]} 12. Be2 {[%clk
0:01:49.9]} 12... Bd7 {[%clk 0:02:26.4]} 13. Qb3 {[%clk 0:01:47.7]} 13... O-O-O
{[%clk 0:02:15.8]} 14. Rc1 {[%clk 0:01:40.5]} 14... Kb8 {[%clk 0:02:15.5]} 15.
Rc5 {[%clk 0:01:38.3]} 15... Rc8 {[%clk 0:02:06.5]} 16. O-O {[%clk 0:01:35.3]}
16... Rhg8 {[%clk 0:02:04.6]} 17. Rfc1 {[%clk 0:01:34.4]} 17... Ka8 {[%clk
0:01:56.4]} 18. g3 {[%clk 0:01:30]} 18... f5 {[%clk 0:01:47.3]} 19. Ne5 {[%clk
0:01:25]} 19... Nxe5 {[%clk 0:01:39.4]} 20. Rxc8+ {[%clk 0:01:25.9]} 20... Rxc8
{[%clk 0:01:37.7]} 21. Rxc8+ {[%clk 0:01:25.9]} 21... Bxc8 {[%clk 0:01:38.1]}
22. dxe5 {[%clk 0:01:26.8]} 22... Qc7 {[%clk 0:01:36.9]} 23. Qc3 {[%clk
0:01:26.5]} 23... Qxc3 {[%clk 0:01:25.2]} 24. bxc3 {[%clk 0:01:26.3]} 24... Bd7
{[%clk 0:01:23.2]} 25. Bh5 {[%clk 0:01:26.2]} 25... Be8 {[%clk 0:01:23.1]} 26.
Kf1 {[%clk 0:01:16.3]} 26... Kb8 {[%clk 0:01:23.3]} 27. Ke2 {[%clk 0:01:10.5]}
27... Kc7 {[%clk 0:01:22.5]} 28. Kd2 {[%clk 0:01:07.9]} 28... Kb6 {[%clk
0:01:21.9]} 29. Kc2 {[%clk 0:01:06.1]} 29... Kc5 {[%clk 0:01:21.9]} 30. Kb3
{[%clk 0:01:04.6]} 30... a5 {[%clk 0:01:22.4]} 31. a3 {[%clk 0:01:01.9]} 31...
b6 {[%clk 0:01:19.8]} 32. Kb2 {[%clk 0:00:58.1]} 32... Kc6 {[%clk 0:00:58.5]}
33. Kb3 {[%clk 0:00:48]} 33... Kc7 {[%clk 0:00:54]} 34. Kb2 {[%clk 0:00:48.1]}
34... Kd8 {[%clk 0:00:53.6]} 35. Kb3 {[%clk 0:00:48.6]} 35... Ke7 {[%clk
0:00:54]} 36. Kb2 {[%clk 0:00:49.1]} 36... Bb5 {[%clk 0:00:53.2]} 37. Kb3 {[%clk
0:00:48.9]} 37... Bc4+ {[%clk 0:00:51.8]} 38. Kb2 {[%clk 0:00:49.3]} 38... f6
{[%clk 0:00:51.7]} 39. f4 {[%clk 0:00:41.2]} 39... fxe5 {[%clk 0:00:50.2]} 40.
fxe5 {[%clk 0:00:42.1]} 40... Bf1 {[%clk 0:00:46.7]} 41. Kb3 {[%clk 0:00:41.3]}
41... Bd3 {[%clk 0:00:41.8]} 42. Kb2 {[%clk 0:00:41.3]} 42... Bc4 {[%clk
0:00:31.2]} 43. Kc2 {[%clk 0:00:41.4]} 43... Bb5 {[%clk 0:00:28.6]} 44. Kb2
{[%clk 0:00:41.6]} 44... Bd7 {[%clk 0:00:21.4]} 45. Kb3 {[%clk 0:00:41.2]} 45...
b5 {[%clk 0:00:21.7]} 46. Kb2 {[%clk 0:00:41.1]} 46... Kd8 {[%clk 0:00:18.7]}
47. Kb3 {[%clk 0:00:40.5]} 47... Kc7 {[%clk 0:00:19]} 48. Bg6 {[%clk 0:00:39.2]}
48... Kb6 {[%clk 0:00:18.8]} 49. Bf7 {[%clk 0:00:39.8]} 49... Kc5 {[%clk
0:00:18.8]} 50. Bg8 {[%clk 0:00:40]} 50... a4+ {[%clk 0:00:17.9]} 51. Kb2 {[%clk
0:00:39.1]} 51... Kc4 {[%clk 0:00:18]} 52. Kc2 {[%clk 0:00:36.8]} 52... Bc8
{[%clk 0:00:15.1]} 53. Bf7 {[%clk 0:00:36.3]} 53... Bd7 {[%clk 0:00:15.2]} 54.
Bg8 {[%clk 0:00:36.4]} 54... Bc8 {[%clk 0:00:13.6]} 55. Bf7 {[%clk 0:00:36.6]}
55... Bd7 {[%clk 0:00:13.3]} 56. Bg8 {[%clk 0:00:36.8]} 1/2-1/2

[Event "*** Titled Tuesday Blitz"]
[Site "Chess.com"]
[Date "2021.04.27"]
[Round "7"]
[White "Vigorito-NE"]
[Black "lamomiablanca"]
[Result "0-1"]
[WhiteElo "2551"]
[BlackElo "2432"]
[TimeControl "180+1"]
[EndTime "11:17:00 PDT"]
[Termination "lamomiablanca won by checkmate"]

1. d4 {[%clk 0:03:00.9]} 1... Nf6 {[%clk 0:02:58.4]} 2. c4 {[%clk 0:03:00.7]}
2... b6 {[%clk 0:02:56.1]} 3. Nc3 {[%clk 0:02:54.5]} 3... Bb7 {[%clk 0:02:54.6]}
4. e3 {[%clk 0:02:47]} 4... d5 {[%clk 0:02:36.8]} 5. Nf3 {[%clk 0:02:44.3]} 5...
g6 {[%clk 0:02:27.4]} 6. cxd5 {[%clk 0:02:38.5]} 6... Nxd5 {[%clk 0:02:26.5]} 7.
Bb5+ {[%clk 0:02:38.9]} 7... c6 {[%clk 0:02:23.7]} 8. Bd3 {[%clk 0:02:38.6]}
8... Bg7 {[%clk 0:02:22.7]} 9. O-O {[%clk 0:02:36.5]} 9... Nxc3 {[%clk
0:02:20.2]} 10. bxc3 {[%clk 0:02:35.9]} 10... O-O {[%clk 0:02:20.7]} 11. e4
{[%clk 0:02:35.9]} 11... c5 {[%clk 0:02:19]} 12. Bg5 {[%clk 0:02:29.9]} 12...
cxd4 {[%clk 0:02:15.6]} 13. cxd4 {[%clk 0:02:28.6]} 13... h6 {[%clk 0:02:11]}
14. Be3 {[%clk 0:02:26.5]} 14... e6 {[%clk 0:01:59.1]} 15. Qd2 {[%clk
0:02:25.3]} 15... Kh7 {[%clk 0:01:58.2]} 16. Rad1 {[%clk 0:02:21.9]} 16... Nc6
{[%clk 0:01:58]} 17. Bb1 {[%clk 0:02:11.9]} 17... Na5 {[%clk 0:01:55.1]} 18. Rc1
{[%clk 0:02:07.2]} 18... Ba6 {[%clk 0:01:53]} 19. Bd3 {[%clk 0:02:03.2]} 19...
Bxd3 {[%clk 0:01:49.8]} 20. Qxd3 {[%clk 0:02:03.1]} 20... Qd7 {[%clk 0:01:49.9]}
21. h4 {[%clk 0:01:50.7]} 21... Kg8 {[%clk 0:01:28]} 22. h5 {[%clk 0:01:44.7]}
22... g5 {[%clk 0:01:22.5]} 23. e5 {[%clk 0:01:40.4]} 23... Qe7 {[%clk
0:00:58.9]} 24. Qe4 {[%clk 0:01:36.5]} 24... Rfd8 {[%clk 0:00:52.1]} 25. Nh2
{[%clk 0:01:34]} 25... b5 {[%clk 0:00:19.9]} 26. Ng4 {[%clk 0:01:20.3]} 26...
Nc4 {[%clk 0:00:19.7]} 27. Rfd1 {[%clk 0:01:07.9]} 27... Rac8 {[%clk 0:00:18.3]}
28. g3 {[%clk 0:00:58.2]} 28... Rd5 {[%clk 0:00:11.6]} 29. f4 {[%clk 0:00:54.2]}
29... gxf4 {[%clk 0:00:06.7]} 30. Bxf4 {[%clk 0:00:53.8]} 30... Qf8 {[%clk
0:00:05.1]} 31. Rf1 {[%clk 0:00:35.3]} 31... Rcd8 {[%clk 0:00:02.8]} 32. Rcd1
{[%clk 0:00:35.5]} 32... Nb2 {[%clk 0:00:02.5]} 33. Rb1 {[%clk 0:00:19.9]} 33...
Rxd4 {[%clk 0:00:02.3]} 34. Qe3 {[%clk 0:00:19.8]} 34... Nc4 {[%clk 0:00:02.8]}
35. Qf2 {[%clk 0:00:17.7]} 35... Nd2 {[%clk 0:00:03]} 36. Bxd2 {[%clk
0:00:15.6]} 36... Rxd2 {[%clk 0:00:03.9]} 37. Qf4 {[%clk 0:00:15.1]} 37... Qc5+
{[%clk 0:00:04.2]} 38. Kh1 {[%clk 0:00:14.6]} 38... Qc2 {[%clk 0:00:04.1]} 39.
Qxf7+ {[%clk 0:00:13.1]} 39... Kh8 {[%clk 0:00:03.6]} 40. Qf3 {[%clk 0:00:13.4]}
40... R2d3 {[%clk 0:00:01.4]} 41. Qf4 {[%clk 0:00:11.9]} 41... Qc6+ {[%clk
0:00:01.7]} 42. Kg1 {[%clk 0:00:10.8]} 42... Rd2 {[%clk 0:00:02.2]} 43. Rbc1
{[%clk 0:00:09.9]} 43... Qg2# {[%clk 0:00:02]} 0-1

[Event "*** Titled Tuesday Blitz"]
[Site "Chess.com"]
[Date "2021.04.27"]
[Round "7"]
[White "eltrain1971"]
[Black "jamalm2"]
[Result "0-1"]
[WhiteElo "2225"]
[BlackElo "2042"]
[TimeControl "180+1"]
[EndTime "11:17:00 PDT"]
[Termination "jamalm2 won by resignation"]

1. c4 {[%clk 0:03:00.9]} 1... f5 {[%clk 0:02:58.5]} 2. g3 {[%clk 0:03:00.9]}
2... g6 {[%clk 0:02:58.4]} 3. Bg2 {[%clk 0:03:01.3]} 3... Bg7 {[%clk 0:02:58.6]}
4. Nc3 {[%clk 0:03:01.9]} 4... Nf6 {[%clk 0:02:58.6]} 5. d3 {[%clk 0:03:02.5]}
5... d6 {[%clk 0:02:58.7]} 6. e4 {[%clk 0:03:03.1]} 6... fxe4 {[%clk 0:02:58.1]}
7. dxe4 {[%clk 0:03:02]} 7... O-O {[%clk 0:02:55.8]} 8. Nge2 {[%clk 0:03:00]}
8... c6 {[%clk 0:02:55.8]} 9. O-O {[%clk 0:02:59.4]} 9... e5 {[%clk 0:02:54.2]}
10. h3 {[%clk 0:02:57.1]} 10... Be6 {[%clk 0:02:53.3]} 11. b3 {[%clk 0:02:56.8]}
11... Qc7 {[%clk 0:02:47.1]} 12. Bg5 {[%clk 0:02:53.3]} 12... Nbd7 {[%clk
0:02:45.3]} 13. Qd2 {[%clk 0:02:53.4]} 13... Rad8 {[%clk 0:02:30.4]} 14. Rad1
{[%clk 0:02:51.8]} 14... Nb6 {[%clk 0:02:24.5]} 15. Kh2 {[%clk 0:02:42.9]} 15...
a5 {[%clk 0:02:20.1]} 16. a4 {[%clk 0:02:40.4]} 16... Nc8 {[%clk 0:02:13.3]} 17.
Qe3 {[%clk 0:02:35.1]} 17... Rde8 {[%clk 0:02:07.2]} 18. Rd2 {[%clk 0:02:31.6]}
18... Nd7 {[%clk 0:01:59.1]} 19. Nc1 {[%clk 0:02:14.5]} 19... Nc5 {[%clk
0:01:58.5]} 20. Qe2 {[%clk 0:02:06.9]} 20... Qf7 {[%clk 0:01:54.9]} 21. Be3
{[%clk 0:02:03.4]} 21... Nxb3 {[%clk 0:01:53]} 22. Nxb3 {[%clk 0:01:51.3]} 22...
Bxc4 {[%clk 0:01:52.8]} 23. Qe1 {[%clk 0:01:41]} 23... Bxb3 {[%clk 0:01:52.2]}
24. Qb1 {[%clk 0:01:32.7]} 24... Bc4 {[%clk 0:01:47.6]} 25. Re1 {[%clk
0:01:27.3]} 25... Rd8 {[%clk 0:01:33.7]} 26. Rb2 {[%clk 0:01:25.8]} 26... Rd7
{[%clk 0:01:32.3]} 27. Rd1 {[%clk 0:01:22.5]} 27... h5 {[%clk 0:01:24.6]} 28. h4
{[%clk 0:01:21.2]} 28... Kh7 {[%clk 0:01:20.8]} 29. Qc1 {[%clk 0:01:20]} 29...
Be6 {[%clk 0:01:14.9]} 30. Rbd2 {[%clk 0:01:16.9]} 30... Bg4 {[%clk 0:01:07.6]}
31. f3 {[%clk 0:01:07.7]} 31... Be6 {[%clk 0:00:51.8]} 32. Rf1 {[%clk
0:01:06.7]} 32... Bc4 {[%clk 0:00:50.5]} 33. Rff2 {[%clk 0:01:06.7]} 33... b5
{[%clk 0:00:50]} 34. axb5 {[%clk 0:01:04.5]} 34... cxb5 {[%clk 0:00:50]} 35. Nd5
{[%clk 0:01:04.3]} 35... b4 {[%clk 0:00:44]} 36. Qa1 {[%clk 0:00:52.8]} 36...
Bxd5 {[%clk 0:00:42.9]} 37. Rxd5 {[%clk 0:00:50.6]} 37... Rb7 {[%clk 0:00:41.3]}
38. Qxa5 {[%clk 0:00:48.2]} 38... b3 {[%clk 0:00:41]} 39. Rb2 {[%clk 0:00:47.9]}
39... Nb6 {[%clk 0:00:33.3]} 40. Rb5 {[%clk 0:00:43.2]} 40... Nc4 {[%clk
0:00:33]} 41. Rxb7 {[%clk 0:00:17.2]} 41... Qxb7 {[%clk 0:00:30.4]} 42. Qc3
{[%clk 0:00:16.6]} 42... Nxb2 {[%clk 0:00:28.7]} 43. Qxb2 {[%clk 0:00:16.5]}
43... Ra8 {[%clk 0:00:24.7]} 44. Qb1 {[%clk 0:00:06.2]} 44... b2 {[%clk
0:00:19.9]} 0-1

[Event "*** Titled Tuesday Blitz"]
[Site "Chess.com"]
[Date "2021.04.27"]
[Round "7"]
[White "HouseOfDurin"]
[Black "ChronicUnhappiness"]
[Result "0-1"]
[WhiteElo "2131"]
[BlackElo "2324"]
[TimeControl "180+1"]
[EndTime "11:17:02 PDT"]
[Termination "ChronicUnhappiness won on time"]

1. d4 {[%clk 0:02:54.9]} 1... Nf6 {[%clk 0:03:00.9]} 2. Bg5 {[%clk 0:02:53.5]}
2... e6 {[%clk 0:03:01.8]} 3. e4 {[%clk 0:02:52.7]} 3... h6 {[%clk 0:03:02.2]}
4. Bxf6 {[%clk 0:02:52.7]} 4... Qxf6 {[%clk 0:03:03.1]} 5. e5 {[%clk 0:02:53.3]}
5... Qd8 {[%clk 0:02:59.2]} 6. f4 {[%clk 0:02:53.7]} 6... d5 {[%clk 0:02:59.1]}
7. exd6 {[%clk 0:02:50.7]} 7... Bxd6 {[%clk 0:02:55.2]} 8. g3 {[%clk 0:02:48.3]}
8... c5 {[%clk 0:02:49.1]} 9. Bg2 {[%clk 0:02:43.2]} 9... cxd4 {[%clk 0:02:46]}
10. Qxd4 {[%clk 0:02:38]} 10... O-O {[%clk 0:02:45.6]} 11. Nc3 {[%clk 0:02:35]}
11... Nc6 {[%clk 0:02:45.6]} 12. Bxc6 {[%clk 0:02:34.1]} 12... bxc6 {[%clk
0:02:45.4]} 13. O-O-O {[%clk 0:02:34.8]} 13... Be7 {[%clk 0:02:43.1]} 14. Qxd8
{[%clk 0:02:23.1]} 14... Rxd8 {[%clk 0:02:44]} 15. Nf3 {[%clk 0:02:19.9]} 15...
Bb7 {[%clk 0:02:35.4]} 16. Ne5 {[%clk 0:01:59.3]} 16... c5 {[%clk 0:02:33.5]}
17. Rxd8+ {[%clk 0:01:58.3]} 17... Rxd8 {[%clk 0:02:32.6]} 18. Rd1 {[%clk
0:01:58.9]} 18... Rxd1+ {[%clk 0:02:15]} 19. Kxd1 {[%clk 0:01:58.1]} 19... f6
{[%clk 0:02:08.1]} 20. Nd3 {[%clk 0:01:55.2]} 20... Bc6 {[%clk 0:02:05.3]} 21.
a3 {[%clk 0:01:42.1]} 21... a5 {[%clk 0:02:00.5]} 22. Na2 {[%clk 0:01:30.8]}
22... c4 {[%clk 0:01:56.5]} 23. Ne1 {[%clk 0:01:19.4]} 23... g5 {[%clk
0:01:51.1]} 24. fxg5 {[%clk 0:01:17.2]} 24... hxg5 {[%clk 0:01:49.8]} 25. Ke2
{[%clk 0:01:17.1]} 25... Kf7 {[%clk 0:01:49.2]} 26. Nc3 {[%clk 0:01:07.4]} 26...
f5 {[%clk 0:01:45]} 27. Nf3 {[%clk 0:01:00.5]} 27... Bf6 {[%clk 0:01:35.7]} 28.
Nd1 {[%clk 0:00:59.6]} 28... Bxf3+ {[%clk 0:01:21.1]} 29. Kxf3 {[%clk
0:01:00.5]} 29... e5 {[%clk 0:01:21.5]} 30. b3 {[%clk 0:00:53.9]} 30... cxb3
{[%clk 0:01:14.5]} 31. cxb3 {[%clk 0:00:54.8]} 31... Ke6 {[%clk 0:01:11.1]} 32.
Ke3 {[%clk 0:00:47.4]} 32... e4 {[%clk 0:01:07.1]} 33. b4 {[%clk 0:00:40.1]}
33... axb4 {[%clk 0:01:05.1]} 34. axb4 {[%clk 0:00:41]} 34... Kd5 {[%clk
0:01:05.2]} 35. Nf2 {[%clk 0:00:16.5]} 35... Bd4+ {[%clk 0:01:03.6]} 36. Ke2
{[%clk 0:00:16.3]} 36... f4 {[%clk 0:00:58.9]} 37. gxf4 {[%clk 0:00:13.3]} 37...
gxf4 {[%clk 0:00:58.6]} 38. h4 {[%clk 0:00:12.6]} 38... f3+ {[%clk 0:00:54.2]}
39. Ke1 {[%clk 0:00:09.6]} 39... Bc3+ {[%clk 0:00:50.3]} 40. Kf1 {[%clk
0:00:10.1]} 40... Bxb4 {[%clk 0:00:47.3]} 41. h5 {[%clk 0:00:10.7]} 41... e3
{[%clk 0:00:36.8]} 42. Nd3 {[%clk 0:00:04.8]} 42... Bf8 {[%clk 0:00:31.1]} 43.
Nf4+ {[%clk 0:00:02.6]} 43... Ke4 {[%clk 0:00:29.5]} 44. Ng6 {[%clk 0:00:02.1]}
44... e2+ {[%clk 0:00:27.5]} 45. Kf2 {[%clk 0:00:02.3]} 45... Bc5+ {[%clk
0:00:26.7]} 46. Ke1 {[%clk 0:00:01.2]} 46... Ke3 {[%clk 0:00:20.2]} 0-1

[Event "*** Titled Tuesday Blitz"]
[Site "Chess.com"]
[Date "2021.04.27"]
[Round "7"]
[White "AniJak"]
[Black "gonzaga23"]
[Result "0-1"]
[WhiteElo "2283"]
[BlackElo "2469"]
[TimeControl "180+1"]
[EndTime "11:17:03 PDT"]
[Termination "gonzaga23 won on time"]

1. e4 {[%clk 0:03:00.9]} 1... c6 {[%clk 0:02:57.5]} 2. d4 {[%clk 0:02:59.1]}
2... d5 {[%clk 0:02:58.4]} 3. e5 {[%clk 0:02:58.9]} 3... Bf5 {[%clk 0:02:58.5]}
4. Nf3 {[%clk 0:02:59.2]} 4... e6 {[%clk 0:02:58.9]} 5. Be2 {[%clk 0:02:59.6]}
5... Ne7 {[%clk 0:02:59.6]} 6. O-O {[%clk 0:02:59.9]} 6... c5 {[%clk 0:03:00]}
7. dxc5 {[%clk 0:02:56.2]} 7... Nec6 {[%clk 0:02:59.9]} 8. Be3 {[%clk
0:02:47.1]} 8... Nd7 {[%clk 0:02:59.9]} 9. Nd4 {[%clk 0:02:46.3]} 9... Nxd4
{[%clk 0:02:59.5]} 10. Bxd4 {[%clk 0:02:44.2]} 10... Bxc5 {[%clk 0:03:00.1]} 11.
c4 {[%clk 0:02:39.7]} 11... dxc4 {[%clk 0:02:56.9]} 12. Bxc4 {[%clk 0:02:34.9]}
12... O-O {[%clk 0:02:56.6]} 13. Nc3 {[%clk 0:02:29.4]} 13... Rc8 {[%clk
0:02:56.8]} 14. Nb5 {[%clk 0:02:07.5]} 14... Bxd4 {[%clk 0:02:49.3]} 15. Qxd4
{[%clk 0:02:04.9]} 15... Nxe5 {[%clk 0:02:20.3]} 16. Qxe5 {[%clk 0:02:03.4]}
16... Rxc4 {[%clk 0:02:20.4]} 17. Nd6 {[%clk 0:02:03.4]} 17... Rc2 {[%clk
0:02:16.2]} 18. Nxf5 {[%clk 0:01:47]} 18... exf5 {[%clk 0:02:17.1]} 19. b3
{[%clk 0:01:28.9]} 19... Qc8 {[%clk 0:01:57.6]} 20. g3 {[%clk 0:01:22.1]} 20...
Re8 {[%clk 0:01:57.4]} 21. Qa5 {[%clk 0:01:18.5]} 21... a6 {[%clk 0:01:54.9]}
22. Rfe1 {[%clk 0:01:12.3]} 22... g6 {[%clk 0:01:45.4]} 23. Rxe8+ {[%clk
0:00:59.7]} 23... Qxe8 {[%clk 0:01:46.3]} 24. Re1 {[%clk 0:00:59.5]} 24... Qd7
{[%clk 0:01:42.8]} 25. a4 {[%clk 0:00:44.5]} 25... Qd4 {[%clk 0:01:14.8]} 26.
Re8+ {[%clk 0:00:30.1]} 26... Kg7 {[%clk 0:01:14.8]} 27. Qe5+ {[%clk 0:00:30.8]}
27... Qxe5 {[%clk 0:01:15.4]} 28. Rxe5 {[%clk 0:00:31.7]} 28... Rc3 {[%clk
0:01:16.3]} 29. b4 {[%clk 0:00:29.5]} 29... Rc4 {[%clk 0:01:16.4]} 30. b5 {[%clk
0:00:28]} 30... Rxa4 {[%clk 0:01:16.5]} 31. bxa6 {[%clk 0:00:28.2]} 31... bxa6
{[%clk 0:01:14.6]} 32. Re7 {[%clk 0:00:29.1]} 32... Kf6 {[%clk 0:01:07.7]} 33.
Ra7 {[%clk 0:00:30]} 33... Ra1+ {[%clk 0:00:38.2]} 34. Kg2 {[%clk 0:00:29.2]}
34... a5 {[%clk 0:00:39.1]} 35. h4 {[%clk 0:00:25.7]} 35... a4 {[%clk
0:00:37.6]} 36. Ra6+ {[%clk 0:00:12.6]} 36... Ke5 {[%clk 0:00:37.5]} 37. Ra5+
{[%clk 0:00:13.1]} 37... Kd4 {[%clk 0:00:37.2]} 38. Ra7 {[%clk 0:00:13]} 38...
a3 {[%clk 0:00:35.5]} 39. Rxf7 {[%clk 0:00:13]} 39... Kc3 {[%clk 0:00:35.7]} 40.
Rxh7 {[%clk 0:00:10.8]} 40... Rb1 {[%clk 0:00:34.8]} 41. Ra7 {[%clk 0:00:06.7]}
41... Rb3 {[%clk 0:00:31.4]} 42. f3 {[%clk 0:00:05.9]} 42... Kb2 {[%clk
0:00:30.7]} 43. g4 {[%clk 0:00:05.3]} 43... fxg4 {[%clk 0:00:28.9]} 44. fxg4
{[%clk 0:00:05.6]} 44... a2 {[%clk 0:00:29.8]} 45. h5 {[%clk 0:00:05.9]} 45...
gxh5 {[%clk 0:00:29.2]} 46. gxh5 {[%clk 0:00:05.4]} 46... Ra3 {[%clk 0:00:29.1]}
0-1

[Event "*** Titled Tuesday Blitz"]
[Site "Chess.com"]
[Date "2021.04.27"]
[Round "7"]
[White "WPWPWP-2015"]
[Black "Kale36"]
[Result "1-0"]
[WhiteElo "2419"]
[BlackElo "2279"]
[TimeControl "180+1"]
[EndTime "11:17:07 PDT"]
[Termination "WPWPWP-2015 won on time"]

1. d4 {[%clk 0:03:00.9]} 1... Nc6 {[%clk 0:02:45.8]} 2. e4 {[%clk 0:03:00]} 2...
e5 {[%clk 0:02:45.1]} 3. Nf3 {[%clk 0:02:59.3]} 3... exd4 {[%clk 0:02:44.7]} 4.
Nxd4 {[%clk 0:02:59.4]} 4... Nf6 {[%clk 0:02:44.4]} 5. Nxc6 {[%clk 0:02:58.3]}
5... bxc6 {[%clk 0:02:44.4]} 6. e5 {[%clk 0:02:58.5]} 6... Qe7 {[%clk
0:02:42.9]} 7. Qe2 {[%clk 0:02:59.2]} 7... Nd5 {[%clk 0:02:43.4]} 8. h4 {[%clk
0:02:58.5]} 8... a5 {[%clk 0:02:33.4]} 9. h5 {[%clk 0:02:57.1]} 9... Ba6 {[%clk
0:02:33]} 10. c4 {[%clk 0:02:56.6]} 10... Nb6 {[%clk 0:02:31.9]} 11. Nd2 {[%clk
0:02:56]} 11... h6 {[%clk 0:02:29.7]} 12. b3 {[%clk 0:02:55.4]} 12... Qe6 {[%clk
0:02:23]} 13. f4 {[%clk 0:02:53]} 13... Bb4 {[%clk 0:02:18.5]} 14. Bb2 {[%clk
0:02:44.1]} 14... a4 {[%clk 0:02:05.9]} 15. Qf2 {[%clk 0:02:39.9]} 15... a3
{[%clk 0:01:57.7]} 16. Bd4 {[%clk 0:02:37.6]} 16... c5 {[%clk 0:01:55.9]} 17.
Bxc5 {[%clk 0:02:29.9]} 17... Bxc5 {[%clk 0:01:44.1]} 18. Qxc5 {[%clk
0:02:29.1]} 18... d6 {[%clk 0:01:44.4]} 19. Qxc7 {[%clk 0:02:26.5]} 19... dxe5
{[%clk 0:01:44.6]} 20. Qxe5 {[%clk 0:02:25.6]} 20... O-O-O {[%clk 0:01:18.8]}
21. Qxe6+ {[%clk 0:02:24.3]} 21... fxe6 {[%clk 0:01:19.4]} 22. O-O-O {[%clk
0:02:23.6]} 22... Bb7 {[%clk 0:01:13.4]} 23. Rh3 {[%clk 0:02:03]} 23... Rhf8
{[%clk 0:01:08.9]} 24. Re3 {[%clk 0:02:00]} 24... Rxf4 {[%clk 0:00:56.9]} 25.
Rxe6 {[%clk 0:01:58.8]} 25... Nd7 {[%clk 0:00:57.4]} 26. g3 {[%clk 0:01:55.4]}
26... Rf2 {[%clk 0:00:55.8]} 27. Bh3 {[%clk 0:01:54.1]} 27... Kc7 {[%clk
0:00:46.1]} 28. Re7 {[%clk 0:01:51.1]} 28... Bc6 {[%clk 0:00:23.5]} 29. Bxd7
{[%clk 0:01:40.3]} 29... Bxd7 {[%clk 0:00:21.2]} 30. Rf1 {[%clk 0:01:03.4]}
30... Rdf8 {[%clk 0:00:19.7]} 31. Rd1 {[%clk 0:00:55.3]} 31... Kc8 {[%clk
0:00:17.2]} 32. Rxg7 {[%clk 0:00:52.8]} 32... Bf5 {[%clk 0:00:16.9]} 33. Ra7
{[%clk 0:00:49]} 33... Kb8 {[%clk 0:00:15.6]} 34. Rxa3 {[%clk 0:00:48.2]} 34...
Rd8 {[%clk 0:00:15.9]} 35. b4 {[%clk 0:00:47.3]} 35... Rd4 {[%clk 0:00:14.4]}
36. Rc3 {[%clk 0:00:47]} 36... Bd3 {[%clk 0:00:13]} 37. a4 {[%clk 0:00:46.2]}
37... Be2 {[%clk 0:00:09.9]} 38. Re1 {[%clk 0:00:41.9]} 38... Bxh5 {[%clk
0:00:03.2]} 39. Rc2 {[%clk 0:00:39.9]} 39... Bg6 {[%clk 0:00:01.9]} 40. Rb2
{[%clk 0:00:34.1]} 40... Rd3 {[%clk 0:00:02.4]} 41. Rh1 {[%clk 0:00:22.8]} 41...
Rc3+ {[%clk 0:00:03.3]} 42. Kd1 {[%clk 0:00:22.8]} 42... Bd3 {[%clk 0:00:03.2]}
43. Re1 {[%clk 0:00:20.6]} 43... Ra3 {[%clk 0:00:03]} 44. Re8+ {[%clk
0:00:19.1]} 44... Kc7 {[%clk 0:00:02.7]} 45. Nb3 {[%clk 0:00:17]} 45... Ra1+
{[%clk 0:00:02.2]} 46. Nc1 {[%clk 0:00:15.9]} 1-0